bitfinex/quotes_SOLUSD_20250625
["timestamp","ask_amount","ask_price","bid_price","bid_amount"]
[1750842574932,9.19917963,146.08,146.07,6.7]
[1750842575556,16.0447437,146.08,146.07,6.7]
[1750842577017,42.0447437,146.08,146.07,6.7]
[1750842577324,42.0447437,146.08,146.04,6.7]
[1750842577526,9.19917963,146.06,146.04,6.7]
[1750842577837,16.04580454,146.06,146.04,6.7]
[1750842578040,32.84575138,146.08,146.04,6.7]
[1750842578242,9.19917963,146.07,146.04,6.7]
[1750842578841,32.84575138,146.08,146.04,6.7]
[1750842579025,9.19917963,146.07,146.04,6.7]
[1750842579229,16.04536398,146.07,146.04,6.7]
[1750842579625,9.19917963,146.07,146.04,6.7]
[1750842579818,42.04489305,146.08,146.04,6.7]
[1750842580236,35.19917963,146.08,146.04,22.74658718]
[1750842580449,26.0,146.08,146.04,22.74658718]
[1750842580624,32.8456428,146.08,146.04,15.89917963]
[1750842581641,9.19917963,146.07,146.04,6.7]
[1750842583545,32.84557911,146.08,146.04,22.7465754]
[1750842583745,42.04475874,146.08,146.04,15.89917963]
[1750842584145,42.04475874,146.08,146.04,104.59917963]
[1750842584923,26.0,146.08,146.04,111.44657616]
[1750842585123,35.19917963,146.08,146.04,111.44657616]
[1750842586442,26.0,146.08,146.04,111.44657616]
[1750842587349,26.0,146.08,146.04,102.24739653]
[1750842587661,16.04422357,146.1,146.06,9.19917963]
[1750842587861,9.19917963,146.09,146.05,9.19917963]
[1750842588933,9.19917963,146.08,146.04,104.59917963]
[1750842589130,9.19917963,146.08,146.04,111.44649995]
[1750842589345,16.04472514,146.09,146.04,111.44649995]
[1750842591361,16.04472514,146.09,146.05,9.19917963]
[1750842592158,16.04472514,146.09,146.04,111.44640557]
[1750842594044,42.04399918,146.1,146.05,16.04610953]
[1750842595866,42.04399918,146.1,146.05,104.74610953]
[1750842596581,26.0,146.1,146.07,9.19917963]
[1750842596864,32.84394745,146.12,146.08,9.19917963]
[1750842597040,42.04312708,146.12,146.07,9.19917963]
[1750842597361,16.04312708,146.12,146.07,9.19917963]
[1750842597561,26.0,146.11,146.07,9.19917963]
[1750842598253,9.19917963,146.15,146.1,9.19917963]
[1750842598463,26.0,146.13,146.11,15.81917963]
[1750842598655,26.0,146.13,146.11,6.62]
[1750842598967,26.0,146.13,146.11,15.81917963]
[1750842599143,26.0,146.13,146.11,6.62]
[1750842600659,16.04204987,146.14,146.11,6.62]
[1750842600660,16.04153472,146.15,146.11,6.62]
[1750842600957,9.19917963,146.18,146.13,9.19917963]
[1750842601158,9.19917963,146.17,146.12,9.19917963]
[1750842601349,35.19917963,146.17,146.12,9.19917963]
[1750842601537,35.19917963,146.17,146.13,9.19917963]
[1750842601739,35.19917963,146.17,146.11,131.00410319]
[1750842601740,26.0,146.17,146.14,9.19917963]
[1750842601938,6.83947746,146.21,146.11,148.11449946]
[1750842602160,9.19917963,146.2,146.15,9.19917963]
[1750842602348,9.19917963,146.17,146.13,9.19917963]
[1750842602749,9.19917963,146.18,146.13,9.19917963]
[1750842602950,9.19917963,146.17,146.12,9.19917963]
[1750842603261,9.19917963,146.16,146.11,131.00410319]
[1750842603443,9.19917963,146.15,146.11,140.20328282]
[1750842603852,9.19917963,146.15,146.11,133.35917963]
[1750842604056,16.04169686,146.15,146.11,88.7]
[1750842604370,16.04169686,146.15,146.1,17.64866443]
[1750842604371,9.19917963,146.12,146.07,97.89917963]
[1750842604547,9.19917963,146.11,146.09,6.62]
[1750842604751,9.19917963,146.1,146.09,6.62]
[1750842606460,16.04380659,146.1,146.09,6.62]
[1750842607952,6.84436498,146.11,146.09,6.62]
[1750842608151,9.19917963,146.1,146.09,6.62]
[1750842608460,16.04380659,146.1,146.09,6.62]
[1750842611472,6.84415851,146.11,146.09,6.62]
[1750842611671,9.19917963,146.1,146.09,6.62]
[1750842614277,16.04380659,146.1,146.09,6.62]
[1750842615781,42.04380659,146.1,146.09,6.62]
[1750842616272,38.36520319,146.1,146.09,6.62]
[1750842616982,31.01485205,146.1,146.09,6.62]
[1750842622993,26.0,146.06,146.01,6.52]
[1750842623165,5.52057623,146.03,146.01,6.52]
[1750842623364,5.52057623,146.04,146.01,6.52]
[1750842624287,26.0,146.06,146.02,5.52057623]
[1750842624462,26.0,146.06,146.03,5.52057623]
[1750842625685,6.84617954,146.07,146.02,6.8480952]
[1750842625989,12.36675577,146.07,146.03,5.52057623]
[1750842626165,12.36675577,146.07,146.02,12.36867143]
[1750842626674,12.36675577,146.07,146.01,13.36869798]
[1750842626984,12.36675577,146.07,146.03,5.52057623]
[1750842627588,6.84617954,146.07,146.03,5.52057623]
[1750842628390,6.84617954,146.07,146.03,12.3684628]
[1750842628582,38.36635987,146.08,146.03,12.3684628]
[1750842628892,38.36635987,146.08,146.03,6.84788657]
[1750842629070,38.36635987,146.08,146.04,5.52057623]
[1750842629964,31.52057623,146.08,146.04,12.36799357]
[1750842630295,38.36616376,146.08,146.04,12.36799357]
[1750842630586,38.36616376,146.08,146.02,6.84837693]
[1750842630770,38.36616376,146.08,146.03,5.52057623]
[1750842631993,38.36616376,146.08,146.03,12.36810042]
[1750842635373,5.52057623,146.11,146.08,6.52]
[1750842636496,5.52057623,146.12,146.08,12.04057623]
[1750842636695,31.52057623,146.13,146.09,5.52057623]
[1750842637593,26.0,146.13,146.09,5.52057623]
[1750842638599,5.52057623,146.14,146.09,12.36552775]
[1750842638804,5.52057623,146.16,146.12,5.52057623]
[1750842638976,18.64964886,146.18,146.12,5.52057623]
[1750842639181,5.52057623,146.16,146.12,5.52057623]
[1750842639388,31.52057623,146.16,146.11,5.52057623]
[1750842639998,31.52057623,146.16,146.12,5.52057623]
[1750842640396,26.0,146.16,146.12,5.52057623]
[1750842640694,6.84134911,146.17,146.13,5.52057623]
[1750842640902,38.36192534,146.17,146.13,5.52057623]
[1750842641298,31.52057623,146.17,146.13,12.3635373]
[1750842641484,26.0,146.17,146.13,12.3635373]
[1750842641678,12.36109539,146.19,146.15,5.52057623]
[1750842641898,12.36109539,146.19,146.15,6.52]
[1750842642196,5.52057623,146.18,146.15,6.52]
[1750842642600,31.52057623,146.19,146.15,12.04057623]
[1750842642903,31.52057623,146.19,146.15,18.88266832]
[1750842643078,26.0,146.19,146.15,18.88266832]
[1750842643279,38.36100758,146.19,146.15,12.04057623]
[1750842643479,31.52057623,146.19,146.15,12.04057623]
[1750842643801,31.52057623,146.19,146.15,18.88281611]
[1750842644680,26.0,146.19,146.15,18.88281611]
[1750842645008,31.52057623,146.21,146.17,5.52057623]
[1750842645500,5.52057623,146.22,146.17,5.52057623]
[1750842645699,5.52057623,146.22,146.18,5.52057623]
[1750842646007,38.35974663,146.22,146.17,12.36178697]
[1750842646199,5.52057623,146.21,146.17,5.52057623]
[1750842646511,5.52057623,146.19,146.15,12.04057623]
[1750842646683,5.52057623,146.2,146.15,12.04057623]
[1750842647300,5.52057623,146.2,146.16,5.52057623]
[1750842647698,6.84005756,146.2,146.16,5.52057623]
[1750842647877,26.0,146.22,146.16,6.84176203]
[1750842648085,5.52057623,146.21,146.17,5.52057623]
[1750842648294,5.52057623,146.21,146.16,5.52057623]
[1750842648499,5.52057623,146.19,146.15,18.88265953]
[1750842648685,5.52057623,146.19,146.15,6.52]
[1750842648885,5.52057623,146.18,146.15,6.52]
[1750842649202,32.83917829,146.22,146.17,5.52057623]
[1750842649382,5.52057623,146.23,146.19,5.52057623]
[1750842649899,5.52057623,146.23,146.19,6.8401174]
[1750842650314,32.83810243,146.24,146.19,6.8401174]
[1750842650497,5.52057623,146.23,146.19,12.36069363]
[1750842650878,32.83810243,146.24,146.19,12.36069363]
[1750842650879,38.35867866,146.24,146.19,12.36069363]
[1750842651104,26.0,146.24,146.21,5.52057623]
[1750842651309,26.0,146.24,146.22,6.46]
[1750842652886,38.35869971,146.24,146.22,6.46]
[1750842653603,31.52057623,146.24,146.22,6.46]
[1750842655008,26.0,146.24,146.22,6.46]
[1750842655301,12.35778385,146.26,146.22,6.46]
[1750842655518,5.52057623,146.25,146.22,6.46]
[1750842655705,5.52057623,146.24,146.22,6.46]
[1750842655900,5.52057623,146.25,146.22,6.46]
[1750842656098,32.83720762,146.26,146.22,11.98057623]
[1750842656415,32.83720762,146.26,146.22,18.8195217]
[1750842656592,32.83720762,146.26,146.22,11.98057623]
[1750842656798,38.35778385,146.26,146.22,11.98057623]
[1750842657107,32.83720762,146.26,146.22,11.98057623]
[1750842657410,38.35778385,146.26,146.22,11.98057623]
[1750842658004,38.35778385,146.26,146.22,6.46]
[1750842658922,5.52057623,146.25,146.22,6.46]
[1750842659088,32.83720762,146.26,146.22,6.46]
[1750842659089,32.83728068,146.26,146.22,11.98057623]
[1750842659604,26.0,146.26,146.22,18.81941431]
[1750842659790,26.0,146.26,146.23,5.52057623]
[1750842660527,5.52057623,146.25,146.22,6.46]
[1750842660692,5.52057623,146.24,146.22,6.46]
[1750842661390,49.93002006,146.26,146.22,6.46]
[1750842661698,38.35774794,146.26,146.22,11.98057623]
[1750842661887,5.52057623,146.25,146.22,6.46]
[1750842662291,38.35774794,146.26,146.22,6.46]
[1750842662709,38.35774794,146.26,146.22,13.2989833]
[1750842662911,38.35774794,146.26,146.22,18.81955953]
[1750842663216,18.64964886,146.22,146.18,6.46]
[1750842663413,26.0,146.21,146.18,6.46]
[1750842664014,32.83717171,146.26,146.2,5.52057623]
[1750842664214,5.52057623,146.25,146.2,5.52057623]
[1750842664795,5.52057623,146.24,146.2,5.52057623]
[1750842665198,12.35869899,146.24,146.2,12.36040364]
[1750842665809,6.83812276,146.24,146.2,12.36040364]
[1750842666207,26.0,146.26,146.2,12.36040364]
[1750842666208,26.0,146.26,146.22,5.52057623]
[1750842666613,12.35759953,146.27,146.22,5.52057623]
[1750842666908,38.35759953,146.27,146.23,5.52057623]
[1750842667415,38.35759953,146.27,146.22,12.35945668]
[1750842667719,38.35759953,146.27,146.22,5.52057623]
[1750842668101,6.83640868,146.28,146.23,5.52057623]
[1750842668301,5.52057623,146.27,146.23,5.52057623]
[1750842668506,38.35681551,146.28,146.24,5.52057623]
[1750842668707,38.35681551,146.28,146.25,6.46]
[1750842669108,26.0,146.28,146.25,6.46]
[1750842669309,38.35680118,146.28,146.25,6.46]
[1750842669508,5.52057623,146.27,146.25,6.46]
[1750842669715,32.83622495,146.28,146.25,6.46]
[1750842670018,38.35680118,146.28,146.25,6.46]
[1750842670410,5.52057623,146.27,146.25,6.46]
[1750842670610,32.83622495,146.28,146.25,6.46]
[1750842670814,5.52057623,146.27,146.25,6.46]
[1750842671220,38.35768433,146.27,146.25,6.46]
[1750842671398,32.8371081,146.27,146.25,6.46]
[1750842672315,38.35768433,146.27,146.25,6.46]
[1750842672511,5.52057623,146.26,146.25,6.46]
[1750842673220,24.17022509,146.26,146.25,6.46]
[1750842673404,31.00736443,146.26,146.25,6.46]
[1750842674322,12.35771557,146.26,146.25,6.46]
[1750842677808,32.83687133,146.27,146.25,6.46]
[1750842678007,5.52057623,146.26,146.25,6.46]
[1750842678310,48.10021278,146.26,146.19,5.52057623]
[1750842678512,5.52057623,146.24,146.2,6.44]
[1750842679028,12.35771557,146.26,146.21,5.52057623]
[1750842679412,32.8368238,146.27,146.23,5.52057623]
[1750842679620,6.8368238,146.27,146.23,5.52057623]
[1750842680226,31.52057623,146.28,146.24,5.52057623]
[1750842680653,5.52057623,146.27,146.23,5.52057623]
[1750842681529,32.83633056,146.28,146.23,5.52057623]
[1750842681733,38.35690679,146.28,146.23,12.35879279]
[1750842682106,38.35690679,146.28,146.24,5.52057623]
[1750842682321,26.0,146.28,146.24,5.52057623]
[1750842682528,26.0,146.28,146.25,5.52057623]
[1750842683434,38.35682268,146.28,146.23,14.01729279]
[1750842683730,26.0,146.28,146.25,5.52057623]
[1750842683907,27.4468169,146.29,146.26,5.52057623]
[1750842684112,27.4468169,146.29,146.27,6.44]
[1750842684926,1.4468169,146.29,146.27,11.96057623]
[1750842685231,1.4468169,146.29,146.27,6.44]
[1750842685405,6.96739313,146.29,146.27,6.44]
[1750842685609,13.80319276,146.29,146.27,6.44]
[1750842686611,8.28261653,146.29,146.27,6.44]
[1750842687544,13.80319276,146.29,146.27,6.44]
[1750842688839,13.80319276,146.29,146.22,6.44]
[1750842688840,18.64964886,146.27,146.22,6.44]
[1750842689042,5.52057623,146.25,146.22,6.44]
[1750842690530,6.83781001,146.25,146.22,6.44]
[1750842690830,5.52057623,146.24,146.22,6.44]
[1750842691426,6.83781001,146.25,146.22,6.44]
[1750842691624,12.35838624,146.25,146.22,6.44]
[1750842693540,6.83781001,146.25,146.22,6.44]
[1750842693738,12.35838624,146.25,146.22,6.44]
[1750842694324,26.0,146.28,146.23,5.52057623]
[1750842694325,32.83648902,146.28,146.23,5.52057623]
[1750842694624,5.52057623,146.27,146.23,88.7]
[1750842694836,5.52057623,146.25,146.23,88.7]
[1750842695031,18.64964886,146.27,146.22,6.44]
[1750842695336,5.52057623,146.24,146.22,6.44]
[1750842695537,5.52057623,146.25,146.22,6.44]
[1750842695744,5.52057623,146.26,146.22,6.44]
[1750842696342,5.52057623,146.25,146.22,6.44]
[1750842696554,12.35835678,146.25,146.22,6.44]
[1750842697452,5.52057623,146.23,146.22,6.44]
[1750842698426,26.0,146.23,146.22,6.44]
[1750842698627,31.52057623,146.23,146.22,6.44]
[1750842700852,38.35911825,146.23,146.22,6.44]
[1750842701159,32.83854202,146.23,146.22,6.44]
[1750842701343,38.35911825,146.23,146.22,6.44]
[1750842702453,57.00876711,146.23,146.22,6.44]
[1750842702656,57.00876711,146.23,146.14,5.52057623]
[1750842702657,26.0,146.19,146.14,5.52057623]
[1750842702830,12.36286155,146.15,146.14,6.44]
[1750842703243,31.01251041,146.15,146.14,6.44]
[1750842704349,17.09993429,146.2,146.14,6.44]
[1750842704555,5.52057623,146.18,146.14,6.44]
[1750842704853,5.52057623,146.18,146.14,11.96057623]
[1750842705149,5.52057623,146.18,146.14,18.80324229]
[1750842705337,38.36098939,146.19,146.15,5.52057623]
[1750842705527,32.84041316,146.19,146.16,5.52057623]
[1750842705738,32.84041316,146.19,146.15,5.52057623]
[1750842705947,26.0,146.19,146.16,5.52057623]
[1750842707055,26.0,146.19,146.14,13.28266606]
[1750842707251,32.84043688,146.19,146.16,5.52057623]
[1750842707637,38.36101311,146.19,146.15,5.52057623]
[1750842708860,32.84043688,146.19,146.15,5.52057623]
[1750842709038,38.36101311,146.19,146.15,5.52057623]
[1750842709237,31.52057623,146.19,146.15,12.36279945]
[1750842709538,38.36102614,146.19,146.15,5.52057623]
[1750842709951,26.0,146.19,146.15,12.36280266]
[1750842710458,32.84044126,146.19,146.15,5.52057623]
[1750842710675,32.84044126,146.19,146.15,12.36285695]
[1750842710959,26.0,146.19,146.15,12.36285695]
[1750842711460,32.84046277,146.19,146.15,5.52057623]
[1750842711962,38.361039,146.19,146.15,5.52057623]
[1750842712143,26.0,146.19,146.15,5.52057623]
[1750842712461,32.84060037,146.19,146.15,5.52057623]
[1750842712843,32.84060037,146.19,146.14,13.28267132]
[1750842713172,32.84060037,146.19,146.15,5.52057623]
[1750842713837,12.36066731,146.2,146.16,5.52057623]
[1750842714041,6.84009108,146.2,146.16,94.22057623]
[1750842717543,12.36066731,146.2,146.16,94.22057623]
[1750842717864,6.84009108,146.2,146.16,94.22057623]
[1750842719055,12.36066731,146.2,146.16,94.22057623]
[1750842719372,5.52057623,146.19,146.16,88.7]
[1750842721071,12.36129198,146.19,146.16,88.7]
[1750842721776,12.36069681,146.2,146.16,94.22057623]
[1750842722570,32.8396913,146.21,146.17,5.52057623]
[1750842722763,8.1725,146.28,146.2,5.52057623]
[1750842722955,5.52057623,146.26,146.21,11.96057623]
[1750842723158,6.83760683,146.25,146.21,11.96057623]
[1750842724280,6.83760683,146.25,146.22,5.52057623]
[1750842724781,5.52057623,146.24,146.21,6.44]
[1750842725244,6.83760683,146.25,146.22,5.52057623]
[1750842725868,32.83730269,146.26,146.21,6.44]
[1750842726044,5.52057623,146.23,146.21,6.44]
[1750842726249,5.52057623,146.24,146.21,6.44]
[1750842727176,5.52057623,146.23,146.21,6.44]
[1750842727867,5.52057623,146.22,146.21,6.44]
[1750842728871,26.0,146.18,146.05,1.5701]
[1750842729075,26.0,146.13,146.03,5.52057623]
[1750842729250,5.52057623,146.09,146.04,13.36727623]
[1750842729450,5.52057623,146.09,146.05,11.96057623]
[1750842729649,12.36473474,146.11,146.06,5.52057623]
[1750842729856,12.36433282,146.12,146.07,5.52057623]
[1750842730264,5.52057623,146.11,146.07,5.52057623]
[1750842730452,5.52057623,146.11,146.06,5.52057623]
[1750842730647,6.84228532,146.15,146.08,5.52057623]
[1750842730847,5.52057623,146.14,146.09,5.52057623]
[1750842731583,5.52057623,146.15,146.1,5.52057623]
[1750842731877,5.52057623,146.13,146.09,5.52057623]
[1750842732063,5.52057623,146.13,146.07,6.84603272]
[1750842732379,9.19467077,146.13,146.08,9.19467077]
[1750842732675,9.19467077,146.13,146.07,6.84603272]
[1750842732969,9.19467077,146.13,146.08,9.19467077]
[1750842733166,9.19467077,146.14,146.09,9.19467077]
[1750842733377,9.19467077,146.14,146.1,9.19467077]
[1750842733561,9.19467077,146.15,146.1,9.19467077]
[1750842734067,9.19467077,146.16,146.11,9.19467077]
[1750842734256,9.19467077,146.18,146.14,9.19467077]
[1750842734458,6.4373,146.2,146.13,9.19467077]
[1750842734459,9.19467077,146.17,146.13,9.19467077]
[1750842735564,9.19467077,146.17,146.13,16.03758706]
[1750842735769,9.19467077,146.17,146.13,9.19467077]
[1750842735976,16.03611138,146.17,146.12,22.63817582]
[1750842736278,16.03611138,146.17,146.13,9.19467077]
[1750842737788,9.19467077,146.17,146.13,9.19467077]
[1750842737963,16.03571745,146.18,146.13,16.03774869]
[1750842738282,16.03571745,146.18,146.14,9.19467077]
[1750842738579,16.03524693,146.19,146.14,9.19467077]
[1750842739082,9.19467077,146.18,146.13,16.03774869]
[1750842739982,16.03564722,146.18,146.13,16.03774869]
[1750842741673,16.03564722,146.18,146.14,9.19467077]
[1750842742477,9.19467077,146.18,146.14,16.03737344]
[1750842742698,16.03524536,146.19,146.14,6.84270267]
[1750842742868,16.03524536,146.19,146.15,9.19467077]
[1750842743188,16.03524536,146.19,146.14,16.03737344]
[1750842743383,9.19467077,146.18,146.13,6.84312925]
[1750842743569,9.19467077,146.18,146.12,14.98111926]
[1750842743761,9.19467077,146.17,146.12,8.1376]
[1750842743986,9.19467077,146.16,146.12,17.33227077]
[1750842744397,9.19467077,146.17,146.13,9.19467077]
[1750842744605,23.94160749,146.19,146.13,9.19467077]
[1750842744776,9.19467077,146.18,146.13,9.19467077]
[1750842745983,16.03601988,146.17,146.12,8.1376]
[1750842746179,26.0,146.17,146.13,9.19467077]
[1750842747302,32.84141448,146.17,146.13,9.19467077]
[1750842747499,16.03585648,146.18,146.13,16.03778231]
[1750842749190,9.19467077,146.17,146.13,9.19467077]
[1750842749389,6.84118571,146.18,146.13,9.19467077]
[1750842749576,9.19467077,146.17,146.13,97.89467077]
[1750842750578,16.03585648,146.18,146.13,104.73775458]
[1750842750892,6.84118571,146.18,146.13,104.73775458]
[1750842751104,16.03585648,146.18,146.13,104.73775458]
[1750842752702,16.03585648,146.18,146.13,95.54308381]
[1750842752884,16.03585648,146.18,146.14,9.19467077]
[1750842753081,18.64964886,146.23,146.17,9.19467077]
[1750842753274,9.19467077,146.22,146.17,9.19467077]
[1750842754184,9.19467077,146.22,146.17,16.0357654]
[1750842754374,5.50997528,146.22,146.17,12.35106991]
[1750842755101,12.34906094,146.22,146.17,12.35106991]
[1750842755804,6.83908566,146.22,146.17,12.35106991]
[1750842756004,5.50997528,146.22,146.18,5.50997528]
[1750842756175,26.0,146.23,146.19,12.10997528]
[1750842756382,5.50997528,146.24,146.19,12.10997528]
[1750842756598,5.50997528,146.23,146.19,12.10997528]
[1750842757381,12.34856748,146.23,146.19,12.10997528]
[1750842757586,5.50997528,146.22,146.19,6.6]
[1750842758103,5.50997528,146.21,146.19,6.6]
[1750842758310,5.50997528,146.2,146.14,6.6]
[1750842758512,5.50997528,146.16,146.14,6.6]
[1750842761482,12.3515228,146.17,146.14,6.6]
[1750842762107,12.35096336,146.18,146.14,13.44273687]
[1750842762412,5.50997528,146.2,146.16,5.50997528]
[1750842763708,31.50997528,146.21,146.17,5.50997528]
[1750842763892,5.50997528,146.22,146.18,5.50997528]
[1750842764079,5.50997528,146.24,146.2,12.34981488]
[1750842764282,26.0,146.23,146.21,6.48]
[1750842765186,12.34718528,146.26,146.21,11.98997528]
[1750842765681,38.34718528,146.26,146.21,11.98997528]
[1750842766094,38.34718528,146.26,146.21,18.82926415]
[1750842766287,5.50997528,146.25,146.21,11.98997528]
[1750842767607,5.50997528,146.25,146.21,6.48]
[1750842767808,5.50997528,146.24,146.21,6.48]
[1750842768112,5.50997528,146.23,146.21,6.48]
[1750842768318,5.50997528,146.22,146.21,6.48]
[1750842770791,12.34898499,146.22,146.21,6.48]
[1750842772907,6.83854202,146.23,146.21,6.48]
[1750842773112,5.50997528,146.22,146.21,6.48]
[1750842775016,12.34898499,146.22,146.21,6.48]
[1750842776421,31.50997528,146.22,146.21,6.48]
[1750842777216,26.0,146.22,146.21,6.48]
[1750842777420,12.34777274,146.25,146.21,6.48]
[1750842777616,5.50997528,146.24,146.21,6.48]
[1750842779102,12.34777274,146.25,146.21,6.48]
[1750842779420,5.50997528,146.22,146.21,6.48]
[1750842779625,31.50997528,146.22,146.21,6.48]
[1750842780696,38.34898499,146.22,146.21,6.48]
[1750842783825,23.92839819,146.27,146.21,6.48]
[1750842784032,26.0,146.24,146.21,11.98997528]
[1750842784521,5.50997528,146.23,146.21,6.48]
[1750842785114,12.34898499,146.22,146.21,6.48]
[1750842788730,38.34867299,146.23,146.21,6.48]
[1750842788909,32.83869771,146.23,146.21,6.48]
[1750842790034,26.0,146.23,146.21,6.48]
[1750842790928,32.83858481,146.23,146.21,6.48]
[1750842791112,38.34856009,146.23,146.21,6.48]
[1750842794314,32.83858481,146.23,146.21,6.48]
[1750842794521,30.99676348,146.26,146.21,11.98997528]
[1750842794828,56.99676348,146.26,146.21,11.98997528]
[1750842795715,5.50997528,146.25,146.21,6.48]
[1750842795915,26.0,146.23,146.21,6.48]
[1750842796110,5.50997528,146.24,146.21,6.48]
[1750842796419,31.50997528,146.23,146.21,6.48]
[1750842796827,26.0,146.23,146.21,6.48]
[1750842797016,5.50997528,146.24,146.21,6.48]
[1750842797742,12.34816032,146.24,146.21,6.48]
[1750842799333,6.83818504,146.24,146.21,6.48]
[1750842799540,32.83779349,146.25,146.21,11.98997528]
[1750842800034,32.83779349,146.25,146.21,100.68997528]
[1750842800241,26.0,146.25,146.21,107.52944239]
[1750842804649,26.0,146.25,146.21,18.82944239]
[1750842805155,26.0,146.25,146.23,5.50997528]
[1750842806043,26.0,146.25,146.21,43.57876711]
[1750842806227,26.0,146.25,146.22,5.50997528]
[1750842806739,26.0,146.25,146.23,5.50997528]
[1750842806943,6.83690085,146.27,146.23,5.50997528]
[1750842808269,6.83690085,146.27,146.23,12.34847201]
[1750842810648,6.83690085,146.27,146.24,5.50997528]
[1750842812828,12.34687613,146.27,146.23,5.50997528]
[1750842813834,12.34687613,146.27,146.22,88.7]
[1750842814025,5.50997528,146.24,146.22,88.7]
[1750842814228,5.50997528,146.25,146.21,95.18]
[1750842814437,5.50997528,146.26,146.21,107.5292937]
[1750842815452,12.34687613,146.27,146.23,5.50997528]
[1750842815954,6.83690085,146.27,146.23,5.50997528]
[1750842816150,32.83642136,146.28,146.24,5.50997528]
[1750842816329,32.83642136,146.28,146.24,94.20997528]
[1750842816729,38.34639664,146.28,146.24,94.20997528]
[1750842817542,38.34639664,146.28,146.24,88.7]
[1750842819056,5.50997528,146.27,146.24,88.7]
[1750842819250,5.50997528,146.25,146.24,88.7]
[1750842819447,5.50997528,146.25,146.21,100.68997528]
[1750842819751,5.50997528,146.26,146.21,100.68997528]
[1750842819961,5.50997528,146.26,146.21,107.529373]
[1750842820840,12.34730341,146.26,146.21,107.529373]
[1750842821640,6.83732813,146.26,146.22,5.50997528]
[1750842823055,6.83732813,146.26,146.22,12.34891481]
[1750842823362,12.34685677,146.27,146.22,12.34891481]
[1750842823659,6.83688149,146.27,146.23,5.50997528]
[1750842824158,12.34685677,146.27,146.23,5.50997528]
[1750842824569,12.34685677,146.27,146.22,95.53893953]
[1750842824760,12.34685677,146.27,146.22,101.04891481]
[1750842825060,12.34685677,146.27,146.23,5.50997528]
[1750842825669,12.34685677,146.27,146.22,101.04891481]
[1750842827444,5.50997528,146.26,146.22,101.04891481]
[1750842827644,12.34722046,146.26,146.22,95.53893953]
[1750842827845,6.83724518,146.26,146.22,95.53893953]
[1750842828148,12.34722046,146.26,146.22,95.53893953]
[1750842828765,5.50997528,146.26,146.22,101.04891481]
[1750842829347,5.50997528,146.26,146.22,95.53893953]
[1750842829544,5.50997528,146.26,146.22,101.04891481]
[1750842829744,38.34639867,146.28,146.22,95.53893953]
[1750842829952,5.50997528,146.27,146.23,5.50997528]
[1750842830781,5.50997528,146.27,146.23,12.34838152]
[1750842831265,1.4468169,146.29,146.26,5.50997528]
[1750842831457,1.4468169,146.29,146.27,5.50997528]
[1750842831656,1.4468169,146.29,146.28,11.92997528]
[1750842832472,1.4468169,146.29,146.28,100.62997528]
[1750842832855,1.4468169,146.29,146.28,6.42]
[1750842833258,1.4468169,146.29,146.28,18.76617981]
[1750842836048,1.4468169,146.29,146.28,6.42]
[1750842836254,1.4468169,146.29,146.28,11.92997528]
[1750842837165,1.4468169,146.29,146.28,18.76617981]
[1750842837985,1.4468169,146.29,146.28,6.42]
[1750842838313,1.4468169,146.29,146.28,11.92997528]
[1750842838460,1.4468169,146.29,146.28,18.76617981]
[1750842838659,6.95679218,146.29,146.28,6.42]
[1750842838856,13.79252941,146.29,146.28,6.42]
[1750842839084,32.44217827,146.29,146.28,6.42]
[1750842839457,32.44217827,146.29,146.23,6.42]
[1750842839781,5.50997528,146.25,146.23,6.42]
[1750842840280,5.50997528,146.24,146.23,6.42]
[1750842841659,12.34804967,146.24,146.23,6.42]
[1750842842196,5.50997528,146.24,146.23,6.42]
[1750842842664,6.83781824,146.25,146.23,6.42]
[1750842842863,5.50997528,146.24,146.23,6.42]
[1750842843071,5.50997528,146.25,146.23,6.42]
[1750842844584,5.50997528,146.26,146.23,6.42]
[1750842845365,5.50997528,146.25,146.23,6.42]
[1750842848778,5.50997528,146.27,146.23,6.42]
[1750842849757,5.50997528,146.27,146.23,18.76841107]
[1750842849969,5.50997528,146.28,146.23,18.76841107]
[1750842850774,5.50997528,146.27,146.23,11.92997528]
[1750842851085,5.50997528,146.26,146.23,6.42]
[1750842851273,5.50997528,146.25,146.23,6.42]
[1750842851770,12.34762393,146.25,146.23,6.42]
[1750842852586,5.50997528,146.24,146.23,6.42]